[Event "ChessKid Cup Div-III 2023"]
[Site "Online"]
[Date "2023.05.24"]
[Round "54.3"]
[White "Donchenko, Alexander"]
[Black "Vallejo Pons, Francisco"]
[Result "1-0"]
[ECO "C01"]
[WhiteElo "2669"]
[BlackElo "2712"]
[Annotator "TA"]
[PlyCount "121"]
[EventDate "2023.05.21"]
[EventType "k.o."]
[EventCountry "NET"]
[SourceTitle "playchess.com"]
[Source "ChessBase"]
[SourceQuality "1"]
[TimeControl "900+3"]

{[%evp 9,121,33,26,16,17,24,22,23,10,7,24,0,30,35,47,20,25,0,16,18,21,0,0,0,0,0,0,0,6,-11,-12,-20,32,0,30,3,12,0,15,6,8,9,15,8,18,25,48,8,41,34,50,0,0,-41,0,0,0,0,0,0,0,0,0,-113,-104,-227,0,0,26,27,27,0,0,0,31,13,82,21,157,157,182,28,157,0,157,157,157,136,197,205,160,189,771,758,1605,1371,1680,1536,1379,1378,1901,1271,2108,1520,29982,29983,29984,29985,29984,29984,29984,29985,29985,29986]} 1. c4 {[%emt 0:00:06]} b6 {[%emt 0:00:07]} 2. d4 {[%emt 0:00:06]} e6 {[%emt 0:04:04]} 3. e4 {[%emt 0:00:26]} Bb4+ {[%emt 0:00:05]} 4. Bd2 {[%emt 0:00:05]} Bxd2+ {[%emt 0:00:07]} 5. Nxd2 {[%emt 0:00:03]} d6 {[%emt 0:00:07]} 6. Bd3 {[%emt 0:00:14] C01: French: Exchange Variation.} e5 {[%emt 0:00:11]} 7. Ne2 {[%emt 0:00:23]} Ne7 {[%emt 0:00:11][%cal Bg8e7,Be7g6,Bg6f4][%mdl 32]} 8. O-O {[%emt 0:00:09] The position is equal.} O-O {[%emt 0:00:06] [#]} 9. Re1 $146 {[%emt 0:00:41]} ({Predecessor:} 9. d5 a5 10. Bc2 f5 11. exf5 Nxf5 12. a3 Qe7 13. Ne4 Nd7 14. Qd3 g6 15. Rae1 {½-½ Nechaeva,M (2394)-Bivol,A (2392) RUS-ch (Women) 71st 2021 (8)}) 9... Ng6 {[%emt 0:00:56]} 10. Rc1 {[%emt 0:01:06]} c5 {[%emt 0:00:18]} 11. d5 {[%emt 0:00:16]} Nd7 {[%emt 0:00:17][%cal Bb8d7,Bd7f6,Bf6h5,Bh5f4][%mdl 32]} 12. Nf1 {[%emt 0:00:11]} Nf4 {[%emt 0:00:18]} 13. Bc2 {[%emt 0:00:17]} Nxe2+ {[%emt 0:00:14]} 14. Qxe2 {[%emt 0:00:05]} Nf6 {[%emt 0:00:08]} 15. h3 {[%emt 0:00:18]} g6 {[%emt 0:00:17]} 16. Ng3 {[%emt 0:00:29]} h5 {[%emt 0:00:43]} 17. Qe3 {[%emt 0:00:59]} h4 {[%emt 0:00:07]} 18. Ne2 {[%emt 0:00:29]} Nh5 {[%emt 0:00:23]} 19. f4 {[%emt 0:00:05]} Qf6 {[%emt 0:00:46][%cal Re5f4]} 20. f5 {[%emt 0:00:55]} g5 {[%emt 0:00:59]} (20... Kh7 $11) 21. Kh2 {[%emt 0:00:13]} Qh6 {[%emt 0:00:32]} 22. Rg1 {[%emt 0:00:25]} f6 {[%emt 0:00:09]} 23. Ba4 {[%emt 0:00:19]} Nf4 {[%emt 0:00:51]} 24. a3 {[%emt 0:00:20]} a5 {[%emt 0:00:41]} 25. Rc2 {[%emt 0:00:33]} Qh7 {[%emt 0:00:55]} 26. Bc6 {[%emt 0:00:29]} Ra7 {[%emt 0:00:13]} 27. Qb3 {[%emt 0:01:27]} Ra6 {[%emt 0:00:04]} 28. Qb5 {[%emt 0:00:45]} Qa7 {[%emt 0:00:18]} 29. Nc3 {[%emt 0:00:14]} Kh8 {[%emt 0:00:40]} 30. Be8 {[%emt 0:01:18]} (30. Qb3 $14) 30... Qe7 $11 {[%emt 0:00:20]} 31. Bg6 {[%emt 0:00:14]} a4 {[%emt 0:00:36]} 32. Nxa4 {[%emt 0:00:11]} Qa7 {[%emt 0:00:10]} 33. Nc3 {[%emt 0:00:11]} Bd7 $1 {[%emt 0:00:06] Prevents Be8} 34. Qb3 {[%emt 0:00:04]} Ba4 {[%emt 0:00:12]} 35. Nxa4 {[%emt 0:00:04]} Rxa4 {[%emt 0:00:03]} 36. g3 {[%emt 0:00:08]} (36. Qb5 $11) 36... hxg3+ $17 {[%emt 0:00:06]} 37. Qxg3 {[%emt 0:00:03] [#]} (37. Kxg3 $17 {was worth a try.} b5 38. h4 (38. Qxb5 $2 {perishes.} Rb8 $19) 38... bxc4 39. Qe3) 37... Rg8 $2 {[%emt 0:00:07]} (37... Kg7 $1 $19 {And now ...Rh8 would win.} 38. Qf3 Rh8) 38. h4 {[%emt 0:00:21]} Nxg6 {[%emt 0:00:03]} (38... Kg7 $5 {[%cal Rg8h8]}) 39. fxg6 {[%emt 0:00:04]} Rxg6 {[%emt 0:00:03]} 40. hxg5 {[%emt 0:00:04]} (40. Qg4 $5 {[%cal Rg4c8]} Qh7 41. h5 $14) 40... Qh7+ {[%emt 0:00:05]} 41. Qh3 {[%emt 0:00:05]} Qxh3+ {[%emt 0:00:06]} 42. Kxh3 $11 {[%emt 0:00:03][%mdl 4096] Endgame KRR-KRR} Kg7 {[%emt 0:00:03]} (42... Ra7 $11 {keeps the balance.}) 43. Kh4 {[%emt 0:00:10]} ({White should play} 43. gxf6+ $16 Kxf6 44. Rxg6+ Kxg6 45. Kg4) 43... fxg5+ {[%emt 0:00:06]} (43... Kf7 $11) 44. Rxg5 $16 {[%emt 0:00:03]} Kh6 {[%emt 0:00:06]} 45. Rh5+ {[%emt 0:00:07]} Kg7 {[%emt 0:00:04]} 46. Rg5 {[%emt 0:00:03] Rcg2 is the strong threat.} Kh6 {[%emt 0:00:04] [#]} 47. Rxg6+ {[%emt 0:00:07]} Kxg6 {[%emt 0:00:03] KR-KR} 48. Kg4 {[%emt 0:00:03]} b5 {[%emt 0:00:04]} (48... Kf6 $16 49. Rc1 Kg6) 49. cxb5 $18 {[%emt 0:00:06][%cal Bc4b5,Bb5b6][%mdl 32]} Rxe4+ {[%emt 0:00:03]} 50. Kf3 {[%emt 0:00:03]} Ra4 {[%emt 0:00:04]} (50... Rh4) 51. Rc3 {[%emt 0:00:10] Hoping for b6.} Ra7 {[%emt 0:00:04]} 52. b6 {[%emt 0:00:05]} Rb7 {[%emt 0:00:04]} 53. Rb3 {[%emt 0:00:04]} Kf5 {[%emt 0:00:04]} 54. a4 {[%emt 0:00:04] Threatens to win with Rb5.} e4+ {[%emt 0:00:03]} 55. Ke3 {[%emt 0:00:04]} Ke5 {[%emt 0:00:03]} 56. a5 {[%emt 0:00:03]} Kxd5 {[%emt 0:00:04]} 57. a6 {[%emt 0:00:04] White mates.} Rh7 {[%emt 0:00:03]} 58. a7 {[%emt 0:00:08]} Rh3+ {[%emt 0:00:04]} 59. Kd2 {[%emt 0:00:04]} Rxb3 {[%emt 0:00:03]} 60. a8=Q+ {[%emt 0:00:03]} (60. a8=B+ Ke5 61. Kd1 Rxb6 62. Kc2 Kd4 63. Kc1 d5 64. Kd2 Rxb2+ 65. Kd1 e3 66. Ke1 c4 67. Bc6 c3 68. Ba4 c2 69. Bxc2 Rxc2 70. Kf1 Rf2+ 71. Kg1 Kd3 72. Kh1 e2 73. Kg1 e1=Q#) 60... Kd4 {[%emt 0:00:05]} 61. Qa4+ {[%emt 0:00:05] White used his chance.   Weighted Error Value: White=0.23 (precise) /Black=0.35} 1-0

[Event "ChessKid Cup Div-III 2023"]
[Site "Online"]
[Date "2023.05.24"]
[Round "54.3"]
[White "Lysyj, Igor"]
[Black "Navara, David"]
[Result "1/2-1/2"]
[ECO "E05"]
[WhiteElo "2606"]
[BlackElo "2678"]
[Annotator "TA"]
[PlyCount "84"]
[EventDate "2023.05.21"]
[EventType "k.o."]
[EventCountry "NET"]
[SourceTitle "playchess.com"]
[Source "ChessBase"]
[SourceQuality "1"]
[TimeControl "900+3"]

{[%evp 18,84,0,0,21,12,18,29,45,51,41,46,56,45,50,51,191,190,191,189,180,183,202,202,202,202,270,216,219,201,196,197,204,195,204,173,207,200,214,202,222,194,219,230,250,179,195,166,191,131,166,166,181,70,69,43,43,43,79,25,67,59,54,-175,-179,-179,-157,-157,0]} 1. d4 {[%emt 0:00:07] ChessBase II} Nf6 {[%emt 0:00:07]} 2. c4 {[%emt 0:00:04]} e6 {[%emt 0:04:08]} 3. Nf3 {[%emt 0:00:04]} d5 {[%emt 0:00:04]} 4. g3 {[%emt 0:00:05]} Be7 {[%emt 0:00:03]} 5. Bg2 {[%emt 0:00:04]} O-O {[%emt 0:00:03]} 6. O-O {[%emt 0:00:05]} dxc4 {[%emt 0:00:05]} 7. Ne5 {[%emt 0:00:04]} Nc6 {[%emt 0:00:04]} 8. Nxc6 {[%emt 0:00:04]} bxc6 {[%emt 0:00:04]} 9. Na3 {[%emt 0:00:04]} Bxa3 {[%emt 0:00:04]} 10. bxa3 {[%emt 0:00:04]} Rb8 {[%emt 0:00:13] E05: Open Catalan: 5 Nf3 Be7.} 11. Qa4 {[%emt 0:00:07] Prevents Ba6} Qxd4 {[%emt 0:00:26]} 12. Be3 {[%emt 0:00:06][%cal Bc1e3,Be3a7,Ba7d4][%mdl 32]} Qb2 {[%emt 0:00:19] White has an edge.} 13. Qxc4 {[%emt 0:00:14]} Nd5 {[%emt 0:00:51]} 14. Bxa7 {[%emt 0:00:21] This pair of bishops is nice.} Ra8 {[%emt 0:00:12]} 15. Bd4 {[%emt 0:00:13]} (15. Qxc6 $2 Rxa7 16. Bxd5 exd5 $19) 15... Qb5 {[%emt 0:01:10]} 16. Qc2 $36 {[%emt 0:00:57][%mdl 2048] [#] White fights for an advantage.} (16. Qxb5 {simplifies} cxb5 17. Rfc1 Rd8 18. Bb2) 16... Rxa3 $146 {[%emt 0:01:25] [#]} (16... Ba6 $14) ({Predecessor:} 16... Ba6 17. e3 Qc4 18. Qe4 Nc3 19. Bxc3 Qxc3 20. Rfc1 Qxa3 21. Qxc6 Ra7 22. Qc5 Qxc5 23. Rxc5 {1-0 Cornette,M (2600)-Brochet,P (2409) FRA-chT Top 12 2018 (4)}) 17. Bxd5 $1 $18 {[%emt 0:00:26]} exd5 {[%emt 0:00:03]} 18. Bc5 {[%emt 0:00:04]} Bf5 {[%emt 0:00:04]} 19. Qc1 {[%emt 0:00:05]} Ra4 {[%emt 0:00:14] ...Re8 is the strong threat.} 20. Bxf8 {[%emt 0:00:08]} Kxf8 {[%emt 0:00:06]} 21. Qg5 {[%emt 0:00:40][%cal Rg5d8]} Bd7 {[%emt 0:00:05]} 22. Qd8+ {[%emt 0:00:12]} Be8 {[%emt 0:00:04]} 23. Rab1 {[%emt 0:00:08]} Qc5 {[%emt 0:00:19]} 24. Qxc7 {[%emt 0:01:05]} (24. Rb8 Qe7 $16) 24... Rxa2 {[%emt 0:00:05]} 25. e3 {[%emt 0:00:07][%cal Be2e3,Be3d4][%mdl 32]} Ra7 {[%emt 0:00:29]} 26. Qc8 {[%emt 0:00:20]} Re7 {[%emt 0:00:07]} 27. Rfc1 {[%emt 0:00:09]} Qd6 {[%emt 0:00:08]} 28. Rb8 {[%emt 0:00:11]} d4 {[%emt 0:01:41]} 29. exd4 {[%emt 0:00:19]} g6 {[%emt 0:00:06]} 30. Qd8 {[%emt 0:00:30]} (30. Rxc6 Re1+ 31. Kg2 Qd5+ 32. Kh3 Kg7 $19) 30... Qf6 {[%emt 0:00:16]} 31. Qb6 {[%emt 0:01:07] Strongly threatening d5.} Kg7 {[%emt 0:00:25]} 32. Qb2 {[%emt 0:00:21]} Bd7 {[%emt 0:00:08]} 33. Rb3 {[%emt 0:01:13]} (33. Rb7 $18) 33... Be6 {[%emt 0:00:09]} 34. Re3 {[%emt 0:00:13]} (34. Rxc6 Bd5 35. Rc1 Bxb3 36. Qxb3 Qxd4 $11) 34... Bd5 {[%emt 0:00:04]} 35. Qd2 {[%emt 0:00:11]} (35. Rxe7 $18 Qxe7 36. Qc2) 35... Ra7 $14 {[%emt 0:00:12]} 36. Qb4 {[%emt 0:00:35]} Ra2 {[%emt 0:00:09][%csl Ga2][%cal Rf6f2]} 37. Rf1 {[%emt 0:00:06]} g5 {[%emt 0:00:40]} 38. h3 {[%emt 0:01:02]} ({But not} 38. Re8 $2 Qf3 39. Qf8+ Kg6 40. Qd6+ f6 $19) (38. Qc3 $16) 38... Qf5 {[%emt 0:00:11]} 39. g4 {[%emt 0:01:01]} (39. Re5 $5 {[%cal Re5f5]} Qxh3 40. Rxg5+ Kf6 41. Rxd5 cxd5 42. Qb3 $16) 39... Qf4 {[%emt 0:00:04][%cal Of4e3] aiming for ...Qxe3!} 40. Re8 {[%emt 0:00:07] [#] Against Qxe3} (40. Qe7 $14 {keeps the upper hand.}) 40... Qg3+ $3 $19 {[%emt 0:00:03][%mdl 512] Black is clearly better.} 41. fxg3 {[%emt 0:00:08] Threatening mate with Qf8+.} Rg2+ {[%emt 0:00:03]} 42. Kh1 {[%emt 0:00:04] White wants to mate with Qf8+.} Rf2+ $2 {[%emt 0:00:17] Quite a comeback for Black. A brilliant game!   Weighted Error Value: White=0.28 (precise) /Black=0.22 (precise)} ({Black should play} 42... Rxg3+ $17 43. Kh2 Rg2+ 44. Kh1 Rxg4+ 45. Kh2 Rg2+ 46. Kh1 Rg4+ 47. Kh2 Rg2+ 48. Kh1 Rb2+ 49. Kg1 Rg2+ 50. Kh1) 1/2-1/2

[Event "ChessKid Cup Div-III 2023"]
[Site "Online"]
[Date "2023.05.24"]
[Round "55.1"]
[White "Donchenko, Alexander"]
[Black "Navara, David"]
[Result "1/2-1/2"]
[ECO "A29"]
[WhiteElo "2669"]
[BlackElo "2678"]
[Annotator "TA"]
[PlyCount "232"]
[EventDate "2023.05.21"]
[EventType "k.o."]
[EventCountry "NET"]
[SourceTitle "playchess.com"]
[Source "ChessBase"]
[SourceQuality "1"]
[TimeControl "900+3"]

{[%evp 52,232,228,240,225,226,194,169,166,146,162,152,152,158,147,151,138,139,145,102,112,71,86,0,80,74,81,64,79,23,24,0,0,0,0,2,71,71,71,71,88,88,88,88,88,71,71,71,71,71,71,71,71,71,71,40,71,40,71,40,71,40,71,71,71,71,71,71,71,71,71,71,71,71,71,0,6,7,71,71,71,0,0,0,71,71,71,71,71,71,71,71,71,71,71,71,71,71,71,71,71,64,64,64,64,41,41,41,41,41,41,41,41,16,16,16,41,41,41,41,41,41,41,41,41,41,41,41,41,0,41,41,41,41,41,41,41,41,41,0,0,0,0,0,0,0,0,0,0,0,0,0,0,0,0,0,0,0,0,0,0,0,0,0,0,0,0,0,0,0,0,0,0,0,0,0,0,0,0,0,0,0,0]} 1. c4 {[%emt 0:00:11]} e5 {[%emt 0:00:06]} 2. g3 {[%emt 0:00:01]} Nf6 {[%emt 0:00:06]} 3. Bg2 {[%emt 0:00:03]} d5 {[%emt 0:00:01]} 4. cxd5 {[%emt 0:00:01]} Nxd5 {[%emt 0:00:00]} 5. Nc3 {[%emt 0:00:01]} Nb6 {[%emt 0:00:03]} 6. Nf3 {[%emt 0:00:26]} Nc6 {[%emt 0:00:02]} 7. O-O {[%emt 0:00:01]} Be7 {[%emt 0:00:00]} 8. d3 {[%emt 0:00:05]} O-O {[%emt 0:00:01]} 9. Be3 {[%emt 0:00:19]} Be6 {[%emt 0:00:04]} 10. Rc1 {[%emt 0:00:12]} f5 {[%emt 0:00:33]} 11. Na4 {[%emt 0:02:08]} f4 {[%emt 0:00:41]} 12. Bc5 {[%emt 0:00:14]} Bd5 {[%emt 0:00:12]} 13. a3 {[%emt 0:01:28]} a5 {[%emt 0:01:57]} 14. Bxe7 {[%emt 0:01:46]} Qxe7 {[%emt 0:00:03]} 15. Nxb6 {[%emt 0:00:02]} cxb6 {[%emt 0:00:00]} 16. Nd2 {[%emt 0:00:02]} Bxg2 {[%emt 0:00:12]} 17. Kxg2 {[%emt 0:00:26]} a4 {[%emt 0:01:17]} 18. Rc4 {[%emt 0:00:37]} Nd4 {[%emt 0:00:38]} 19. Rxa4 {[%emt 0:00:28]} Rxa4 {[%emt 0:00:21]} 20. Qxa4 {[%emt 0:00:00]} Nxe2 {[%emt 0:00:01]} 21. Re1 {[%emt 0:00:29]} Qf6 {[%emt 0:03:15]} 22. Qe4 {[%emt 0:02:13]} Nd4 {[%emt 0:00:05]} 23. Qxe5 {[%emt 0:00:59]} f3+ {[%emt 0:00:01]} 24. Kf1 {[%emt 0:00:01]} Qxe5 {[%emt 0:00:42]} 25. Rxe5 {[%emt 0:00:00]} Rc8 {[%emt 0:00:01]} 26. Nc4 {[%emt 0:00:04]} h6 {[%emt 0:00:53] [#]} 27. Rd5 $1 {[%emt 0:00:20]} ({Worse is} 27. Nxb6 Rc2 $11) 27... Nb3 {[%emt 0:00:48]} 28. Ke1 {[%emt 0:00:16]} (28. Nxb6 $2 Rc1#) 28... Re8+ {[%emt 0:00:29]} 29. Re5 {[%emt 0:00:40]} Rd8 {[%emt 0:00:03]} 30. Re3 {[%emt 0:00:13]} ({Resist} 30. Nxb6 Nc1 31. Re3 Nxd3+ 32. Kf1 Nc1 $16) 30... b5 {[%emt 0:00:36]} 31. Ne5 {[%emt 0:00:29]} Rc8 {[%emt 0:00:10]} 32. Nxf3 {[%emt 0:00:06]} Rc1+ {[%emt 0:00:04]} 33. Ke2 {[%emt 0:00:01]} Rc2+ {[%emt 0:00:00]} 34. Kf1 {[%emt 0:00:30]} Rxb2 {[%emt 0:00:03]} 35. Kg2 {[%emt 0:01:02]} Na5 {[%emt 0:00:28]} 36. Ne5 {[%emt 0:00:06]} Nc6 {[%emt 0:00:11]} 37. Nf3 {[%emt 0:00:20]} (37. h4 $16) 37... b4 {[%emt 0:00:21]} (37... Na5 $1 $11 {remains equal.}) 38. axb4 $16 {[%emt 0:00:02]} Nxb4 {[%emt 0:00:21]} 39. d4 {[%emt 0:00:09]} b5 {[%emt 0:00:25]} 40. Re8+ {[%emt 0:00:14]} ({White should play} 40. Rc3 $16) 40... Kf7 $11 {[%emt 0:00:01]} 41. Rb8 {[%emt 0:00:01]} Nd3 {[%emt 0:00:50]} 42. Ne5+ {[%emt 0:00:01]} Nxe5 {[%emt 0:00:00]} 43. dxe5 {[%emt 0:00:00]} b4 {[%emt 0:00:00]} (43... Ke6 $11) 44. Rb6 $16 {[%emt 0:00:17]} Re2 {[%emt 0:00:03]} 45. Rb7+ {[%emt 0:00:08]} (45. Rxb4 {simplifies} Rxe5 46. Kf3 Ra5 47. Rb7+) 45... Kg6 {[%emt 0:00:11]} 46. Rb5 {[%emt 0:00:06]} Kf5 {[%emt 0:00:02]} 47. Rxb4 {[%emt 0:00:02]} Rxe5 {[%emt 0:00:17]} 48. Rb6 {[%emt 0:00:01]} Ra5 {[%emt 0:00:27]} 49. h3 {[%emt 0:00:02]} h5 {[%emt 0:00:03]} 50. Rc6 {[%emt 0:00:03]} g6 {[%emt 0:00:02]} 51. Rb6 {[%emt 0:00:04]} Kg5 {[%emt 0:00:02]} 52. Rb4 {[%emt 0:00:05]} Kf6 {[%emt 0:00:02]} 53. Rb3 {[%emt 0:00:02]} Ra6 {[%emt 0:00:03]} 54. Kf3 {[%emt 0:00:01]} Rc6 {[%emt 0:00:02]} 55. Rb4 {[%emt 0:00:03]} Ra6 {[%emt 0:00:01]} 56. Kf4 {[%emt 0:00:01]} Rc6 {[%emt 0:00:03]} 57. h4 {[%emt 0:00:01]} Ra6 {[%emt 0:00:02]} 58. Ke4 {[%emt 0:00:01]} Re6+ {[%emt 0:00:01]} 59. Kf3 {[%emt 0:00:02]} Ra6 {[%emt 0:00:01]} 60. Rc4 {[%emt 0:00:01]} Rb6 {[%emt 0:00:03]} 61. Rc2 {[%emt 0:00:03]} Ra6 {[%emt 0:00:03]} 62. Ke4 {[%emt 0:00:01]} Ra4+ {[%emt 0:00:02]} 63. Kd5 {[%emt 0:00:01]} (63. Ke3 $16) 63... Ra5+ {[%emt 0:00:02]} 64. Kd4 {[%emt 0:00:02]} Ra4+ {[%emt 0:00:01]} (64... g5 $1 $11 {keeps the balance.}) 65. Ke3 $16 {[%emt 0:00:05]} Ra3+ {[%emt 0:00:01]} 66. Kf4 {[%emt 0:00:01]} (66. Ke2 $16) 66... Ra4+ $11 {[%emt 0:00:01]} 67. Kf3 {[%emt 0:00:01]} Ra3+ {[%emt 0:00:01]} (67... Ra6 $1 $11) 68. Ke2 $16 {[%emt 0:00:00]} Ra6 {[%emt 0:00:01]} 69. Rc3 {[%emt 0:00:02]} Re6+ {[%emt 0:00:02]} 70. Kf3 {[%emt 0:00:02]} Ra6 {[%emt 0:00:01]} 71. Rd3 {[%emt 0:00:00]} Kf5 {[%emt 0:00:04]} 72. Rd5+ {[%emt 0:00:02]} Kf6 {[%emt 0:00:01]} 73. Ke4 {[%emt 0:00:08]} Re6+ {[%emt 0:00:01]} 74. Kd3 {[%emt 0:00:03]} Ra6 {[%emt 0:00:00]} 75. Rc5 {[%emt 0:00:04]} Re6 {[%emt 0:00:03]} 76. f3 {[%emt 0:00:04]} Re1 {[%emt 0:00:03]} 77. Rc6+ {[%emt 0:00:04]} Kf5 {[%emt 0:00:15]} 78. Kd2 {[%emt 0:00:03]} (78. Rc4 $5 {[%cal Rc4f4]} Rg1 79. Ke3 $16) 78... Rg1 {[%emt 0:00:02]} 79. Rc5+ {[%emt 0:00:01]} Kf6 {[%emt 0:00:01]} 80. Rg5 {[%emt 0:00:01]} Ra1 {[%emt 0:00:02]} 81. Ke3 {[%emt 0:00:05]} Ra3+ {[%emt 0:00:01]} 82. Kf2 {[%emt 0:00:01]} Ra2+ $1 {[%emt 0:00:01]} 83. Kg1 {[%emt 0:00:02]} Ra1+ {[%emt 0:00:03]} 84. Kg2 {[%emt 0:00:01]} Ra2+ {[%emt 0:00:00]} 85. Kh3 {[%emt 0:00:00]} Rf2 {[%emt 0:00:03]} 86. f4 {[%emt 0:00:01]} Kf7 {[%emt 0:00:05]} 87. Rd5 {[%emt 0:00:07]} Kf6 {[%emt 0:00:03]} 88. Rd1 {[%emt 0:00:01]} Kf7 {[%emt 0:00:04]} 89. Rg1 {[%emt 0:00:01]} Ra2 {[%emt 0:00:04]} 90. Rg2 {[%emt 0:00:01]} Ra6 {[%emt 0:00:03]} 91. Rb2 {[%emt 0:00:02]} Kf6 {[%emt 0:00:01]} 92. Kg2 {[%emt 0:00:00]} Ke6 {[%emt 0:00:04]} 93. Re2+ {[%emt 0:00:03]} Kf6 {[%emt 0:00:01]} 94. Kf3 {[%emt 0:00:01]} Ra3+ {[%emt 0:00:02]} 95. Re3 {[%emt 0:00:01]} Rxe3+ {[%emt 0:00:04]} 96. Kxe3 {[%emt 0:00:00]} Ke7 {[%emt 0:00:00]} 97. Kd4 {[%emt 0:00:24]} Kd6 {[%emt 0:00:03]} 98. Kd3 {[%emt 0:00:02]} Kd7 {[%emt 0:00:02]} 99. Ke4 {[%emt 0:00:05]} Ke6 {[%emt 0:00:00]} 100. Kf3 {[%emt 0:00:01]} Kf7 {[%emt 0:00:01]} 101. Kf2 {[%emt 0:00:18]} Kf8 {[%emt 0:00:02]} 102. Ke2 {[%emt 0:00:04]} Ke8 {[%emt 0:00:01]} 103. Kd3 {[%emt 0:00:04]} Kd7 {[%emt 0:00:01]} 104. Kc3 {[%emt 0:00:06]} (104. Ke4 $5 Ke6 $8 105. Kd4 $11) 104... Kc7 {[%emt 0:00:05]} 105. Kc4 {[%emt 0:00:06]} Kc6 $1 {[%emt 0:00:01]} 106. Kd4 {[%emt 0:00:04]} Kd6 {[%emt 0:00:01]} 107. Ke4 {[%emt 0:00:02]} Ke6 $1 {[%emt 0:00:01]} 108. Kf3 {[%emt 0:00:01]} Kf7 {[%emt 0:00:01]} 109. g4 {[%emt 0:00:01]} hxg4+ {[%emt 0:00:01]} 110. Kxg4 {[%emt 0:00:00]} Kf6 {[%emt 0:00:01]} 111. Kg3 {[%emt 0:00:02]} Kf5 {[%emt 0:00:03]} 112. Kf3 {[%emt 0:00:00]} Ke6 {[%emt 0:00:01]} 113. Kg4 {[%emt 0:00:04]} Kf6 {[%emt 0:00:01]} 114. h5 {[%emt 0:00:01]} gxh5+ {[%emt 0:00:00]} 115. Kxh5 {[%emt 0:00:01]} Kf5 {[%emt 0:00:00]} 116. Kh4 {[%emt 0:00:01]} Kxf4 {[%emt 0:00:00]} 1/2-1/2

[Event "ChessKid Cup Div-III 2023"]
[Site "Online"]
[Date "2023.05.24"]
[Round "55.1"]
[White "Kamsky, Gata"]
[Black "Sevian, Samuel"]
[Result "1/2-1/2"]
[ECO "E68"]
[WhiteElo "2665"]
[BlackElo "2684"]
[Annotator "TA"]
[PlyCount "88"]
[EventDate "2023.05.21"]
[EventType "k.o."]
[EventCountry "NET"]
[SourceTitle "playchess.com"]
[Source "ChessBase"]
[SourceQuality "1"]
[TimeControl "900+3"]

{[%evp 23,88,27,26,0,10,0,0,0,12,-6,-12,-11,-22,-22,-12,-25,19,26,17,0,22,-36,-29,-27,25,9,77,73,125,130,136,40,33,40,36,27,50,31,104,92,92,92,92,23,132,12,14,14,16,26,40,8,40,40,40,0,0,0,0,0,0,0,0,0,0,0,0]} 1. d4 {[%emt 0:00:07]} Nf6 {[%emt 0:00:04]} 2. Nf3 {[%emt 0:00:02]} g6 {[%emt 0:00:01]} 3. g3 {[%emt 0:01:13]} Bg7 {[%emt 0:00:02]} 4. Bg2 {[%emt 0:00:00]} O-O {[%emt 0:00:00]} 5. O-O {[%emt 0:00:01]} d6 {[%emt 0:00:01]} 6. c4 {[%emt 0:00:03]} Nbd7 {[%emt 0:00:01][%cal Bb8d7,Bd7c5,Bc5e6,Be6g5][%mdl 32]} 7. Nc3 {[%emt 0:00:01]} e5 {[%emt 0:00:01]} 8. e4 {[%emt 0:00:21]} exd4 {[%emt 0:00:01]} 9. Nxd4 {[%emt 0:00:03]} Re8 {[%emt 0:00:00]} 10. h3 {[%emt 0:00:51]} Nc5 {[%emt 0:00:02]} 11. Re1 {[%emt 0:00:06]} Bd7 {[%emt 0:00:01]} 12. Bf4 {[%emt 0:00:58]} h6 {[%emt 0:00:00]} 13. Nb3 {[%emt 0:01:47] E68: King's Indian: Fianchetto: 6...Nbd7 7 0-0 e5 8 e4.} Ne6 {[%emt 0:00:02]} 14. Bd2 {[%emt 0:01:46]} a5 {[%emt 0:00:02]} 15. a4 {[%emt 0:00:05]} ({Don't play} 15. e5 dxe5 16. Be3 Qc8 $17) 15... Ng5 {[%emt 0:03:04]} 16. g4 {[%emt 0:00:46] [#]} Bc6 $146 {[%emt 0:00:02][%cal Rf6e4]} ({Predecessor:} 16... Ne6 17. Be3 Nh7 18. Qd2 h5 19. gxh5 Neg5 20. hxg6 fxg6 21. Bxg5 Nxg5 22. Re3 Bh6 {1-0 Deviatkin,A (2569)-Nitin,S (2367) Chennai op 5th 2013 (9)}) 17. Qc2 {[%emt 0:00:46]} Nd7 {[%emt 0:00:02]} 18. f4 {[%emt 0:00:28] Prevents Ne5} Ne6 {[%emt 0:00:02]} 19. Nd5 {[%emt 0:00:46] Wards off Qf6} Nd4 {[%emt 0:00:11]} 20. Nxd4 {[%emt 0:00:02]} Bxd4+ {[%emt 0:00:00]} 21. Kh1 {[%emt 0:00:29]} Nc5 {[%emt 0:00:05]} 22. Bc3 {[%emt 0:01:01]} (22. Rf1 $11) 22... Bxc3 $15 {[%emt 0:00:45]} 23. Qxc3 {[%emt 0:00:03] [#] Black must now prevent Nf6+.} Re6 {[%emt 0:01:10] Against Nf6+} (23... Bxd5 $142 24. cxd5 g5) 24. b3 {[%emt 0:00:09]} (24. e5 $5 {[%cal Rb2b3]}) 24... Nd7 {[%emt 0:00:15]} (24... Bxd5 $11 {keeps the balance.} 25. cxd5 Re7) 25. e5 $36 {[%emt 0:00:12][%mdl 2048] White is really pushing. White is much more active.} dxe5 {[%emt 0:00:06]} (25... Rc8 $142) 26. fxe5 {[%emt 0:00:13]} Rc8 {[%emt 0:00:11]} 27. Qxa5 {[%emt 0:01:12]} (27. Nf4 $16 Bxg2+ 28. Kxg2) 27... Rxe5 $14 {[%emt 0:00:11]} 28. Rxe5 {[%emt 0:00:06]} Nxe5 {[%emt 0:00:00]} 29. Re1 {[%emt 0:00:13]} Bxd5 {[%emt 0:00:53]} 30. Qxd5 {[%emt 0:00:06]} ({But not} 30. Rxe5 Bxg2+ 31. Kxg2 Qd4 $11) 30... Qxd5 {[%emt 0:00:19]} (30... Nd3 $14 31. Qxd8+ Rxd8) 31. Bxd5 $16 {[%emt 0:00:02]} Nc6 {[%emt 0:00:01]} 32. Bxc6 {[%emt 0:00:15]} bxc6 {[%emt 0:00:00][%mdl 4096] Endgame KR-KR} 33. b4 {[%emt 0:00:03]} (33. Ra1 $16) 33... Ra8 {[%emt 0:00:10]} (33... Rb8 $11) 34. Ra1 {[%emt 0:00:03]} (34. a5 $16) 34... Kg7 $1 $11 {[%emt 0:00:44]} 35. Kg2 {[%emt 0:00:02] And now Kf3 would win.} Kf6 {[%emt 0:00:03]} 36. Kf3 {[%emt 0:00:01] Ke4 would be deadly.} Ke5 {[%emt 0:00:02]} 37. Ke3 {[%emt 0:00:03]} c5 {[%emt 0:00:01]} 38. b5 {[%emt 0:00:06]} Ra5 {[%emt 0:00:01]} 39. Kd3 {[%emt 0:00:43]} f5 {[%emt 0:00:01] The position is equal.} 40. gxf5 {[%emt 0:00:05]} gxf5 {[%emt 0:00:01]} 41. Re1+ {[%emt 0:00:26]} Kf6 {[%emt 0:00:03]} 42. Ra1 {[%emt 0:00:07]} Ke5 {[%emt 0:00:01]} 43. Re1+ {[%emt 0:00:10]} Kf6 {[%emt 0:00:01]} 44. Ra1 {[%emt 0:00:03]} Ke5 {[%emt 0:00:00] Weighted Error Value: White=0.22 (precise) /Black=0.20 (precise)} 1/2-1/2